[Event "Titled Tuesday Blitz July 25 Early 2023"]
[White "Wisniowski, Natalie"]
[Black "Richter, Paul"]
[WhiteFideId "30929261"]
[BlackFideId "2046350"]
[WhiteElo "2095"]
[BlackElo "2529"]
[Result "0-1"]
[Round "1"]
[TimeControl "180+2"]
[Date "2023.07.25"]
[WhiteClock "0:00:04"]
[BlackClock "0:00:21"]
[Board "233"]

1. e4 {[%clk 0:03:00]}  c5 {[%clk 0:02:59]} 2. d4 {[%clk 0:02:58]}  cxd4 {[%clk 0:03:00]} 3. c3 {[%clk 0:02:58]}  dxc3 {[%clk 0:03:01]} 4. Nxc3 {[%clk 0:02:58]}  Nc6 {[%clk 0:03:01]} 5. Nf3 {[%clk 0:02:58]}  e6 {[%clk 0:03:02]} 6. Bc4 {[%clk 0:02:57]}  d6 {[%clk 0:03:02]} 7. O-O {[%clk 0:02:57]}  Nf6 {[%clk 0:03:02]} 8. Re1 {[%clk 0:02:56]}  Qc7 {[%clk 0:03:02]} 9. Bf4 {[%clk 0:02:52]}  a6 {[%clk 0:03:01]} 10. Rc1 {[%clk 0:02:50]}  Ng4 {[%clk 0:03:00]} 11. h3 {[%clk 0:02:43]}  Nge5 {[%clk 0:02:59]} 12. Nxe5 {[%clk 0:02:35]}  dxe5 {[%clk 0:03:00]} 13. Bg3 {[%clk 0:02:31]}  Be7 {[%clk 0:02:57]} 14. Bb3 {[%clk 0:02:09]}  O-O {[%clk 0:02:52]} 15. Qg4 {[%clk 0:01:58]}  Bf6 {[%clk 0:02:43]} 16. Red1 {[%clk 0:01:53]}  Rd8 {[%clk 0:02:32]} 17. Na4 {[%clk 0:01:13]}  Rxd1+ {[%clk 0:02:28]} 18. Qxd1 {[%clk 0:01:12]}  Bd7 {[%clk 0:02:20]} 19. Nc5 {[%clk 0:01:11]}  Rd8 {[%clk 0:02:19]} 20. Qe1 {[%clk 0:01:09]}  Bc8 {[%clk 0:02:15]} 21. Kh1 {[%clk 0:00:56]}  Qb6 {[%clk 0:02:04]} 22. Na4 {[%clk 0:00:50]}  Qa5 {[%clk 0:01:57]} 23. Nc3 {[%clk 0:00:39]}  Nd4 {[%clk 0:01:51]} 24. Bc4 {[%clk 0:00:28]}  b5 {[%clk 0:01:46]} 25. Be2 {[%clk 0:00:23]}  Nxe2 {[%clk 0:01:38]} 26. Qxe2 {[%clk 0:00:22]}  b4 {[%clk 0:01:35]} 27. Nd1 {[%clk 0:00:19]}  Qxa2 {[%clk 0:01:31]} 28. Ne3 {[%clk 0:00:15]}  Bg5 {[%clk 0:00:52]} 29. Rc2 {[%clk 0:00:06]}  Qb1+ {[%clk 0:00:45]} 30. Kh2 {[%clk 0:00:04]}  Bxe3 {[%clk 0:00:42]} 31. fxe3 {[%clk 0:00:04]}  Bb7 {[%clk 0:00:42]} 32. Rd2 {[%clk 0:00:03]}  Rc8 {[%clk 0:00:38]} 33. Bxe5 {[%clk 0:00:03]}  Qxe4 {[%clk 0:00:36]} 34. Bg3 {[%clk 0:00:03]}  h6 {[%clk 0:00:34]} 35. Qd3 {[%clk 0:00:03]}  a5 {[%clk 0:00:32]} 36. Qxe4 {[%clk 0:00:03]}  Bxe4 {[%clk 0:00:32]} 37. Bf4 {[%clk 0:00:02]}  Bd5 {[%clk 0:00:30]} 38. Kg3 {[%clk 0:00:02]}  Ra8 {[%clk 0:00:27]} 39. Kf2 {[%clk 0:00:03]}  a4 {[%clk 0:00:27]} 40. Ke1 {[%clk 0:00:03]}  a3 {[%clk 0:00:27]} 41. bxa3 {[%clk 0:00:03]}  bxa3 {[%clk 0:00:28]} 42. Be5 {[%clk 0:00:03]}  a2 {[%clk 0:00:27]} 43. Ba1 {[%clk 0:00:03]}  Rb8 {[%clk 0:00:27]} 44. Rd1 {[%clk 0:00:03]}  Bxg2 {[%clk 0:00:26]} 45. Kd2 {[%clk 0:00:03]}  Bxh3 {[%clk 0:00:26]} 46. Kc2 {[%clk 0:00:03]}  Bg2 {[%clk 0:00:25]} 47. Rg1 {[%clk 0:00:02]}  Rb1 {[%clk 0:00:20]} 48. Rxg2 {[%clk 0:00:01]}  Rxa1 {[%clk 0:00:20]} 49. Kb2 {[%clk 0:00:02]}  Re1 {[%clk 0:00:18]} 50. Kxa2 {[%clk 0:00:02]}  Rxe3 {[%clk 0:00:19]} 51. Rb2 {[%clk 0:00:03]}  f5 {[%clk 0:00:19]} 52. Kb1 {[%clk 0:00:03]}  f4 {[%clk 0:00:19]} 53. Kc1 {[%clk 0:00:03]}  g5 {[%clk 0:00:19]} 54. Kd1 {[%clk 0:00:04]}  g4 {[%clk 0:00:19]} 55. Rb8+ {[%clk 0:00:03]}  Kg7 {[%clk 0:00:19]} 56. Rb7+ {[%clk 0:00:04]}  Kf6 {[%clk 0:00:19]} 57. Rb6 {[%clk 0:00:05]}  g3 {[%clk 0:00:19]} 58. Rb2 {[%clk 0:00:04]}  f3 {[%clk 0:00:19]} 59. Kd2 {[%clk 0:00:04]}  Re2+ {[%clk 0:00:20]} 60. Kc3 {[%clk 0:00:04]}  Rxb2 {[%clk 0:00:21]} 61. Kxb2 {[%clk 0:00:04]}  f2 {[%clk 0:00:21]} 0-1


[Site "https://www.chess.com"]

[Event "Titled Tuesday Blitz July 25 Early 2023"]
[White "Sidletskyi, Ivan"]
[Black "Guevara Sanchez, Erick Marvin"]
[WhiteFideId "14156024"]
[BlackFideId "6700136"]
[WhiteElo "2529"]
[BlackElo "2094"]
[Result "1-0"]
[Round "1"]
[TimeControl "180+2"]
[Date "2023.07.25"]
[WhiteClock "0:00:10"]
[BlackClock "0:00:22"]
[Board "234"]

1. e4 {[%clk 0:02:59]}  c5 {[%clk 0:02:59]} 2. Nf3 {[%clk 0:02:59]}  Nc6 {[%clk 0:02:59]} 3. Nc3 {[%clk 0:02:58]}  e6 {[%clk 0:02:58]} 4. g3 {[%clk 0:02:45]}  d6 {[%clk 0:02:54]} 5. Bg2 {[%clk 0:02:45]}  Be7 {[%clk 0:02:52]} 6. O-O {[%clk 0:02:44]}  Nf6 {[%clk 0:02:52]} 7. d4 {[%clk 0:02:43]}  cxd4 {[%clk 0:02:52]} 8. Nxd4 {[%clk 0:02:43]}  O-O {[%clk 0:02:52]} 9. Be3 {[%clk 0:02:36]}  Bd7 {[%clk 0:02:50]} 10. Nb3 {[%clk 0:02:27]}  Rc8 {[%clk 0:02:48]} 11. f4 {[%clk 0:02:26]}  a6 {[%clk 0:02:35]} 12. Qd2 {[%clk 0:02:17]}  b5 {[%clk 0:02:27]} 13. h3 {[%clk 0:02:13]}  Na5 {[%clk 0:02:20]} 14. Nxa5 {[%clk 0:02:09]}  Qxa5 {[%clk 0:02:21]} 15. Nd5 {[%clk 0:02:08]}  Qd8 {[%clk 0:02:21]} 16. Nxe7+ {[%clk 0:02:05]}  Qxe7 {[%clk 0:02:22]} 17. Rad1 {[%clk 0:01:33]}  Bc6 {[%clk 0:02:07]} 18. Qxd6 {[%clk 0:01:22]}  Qxd6 {[%clk 0:02:06]} 19. Rxd6 {[%clk 0:01:23]}  Bxe4 {[%clk 0:02:06]} 20. Rxa6 {[%clk 0:00:46]}  Bxg2 {[%clk 0:02:04]} 21. Kxg2 {[%clk 0:00:47]}  Rxc2+ {[%clk 0:02:04]} 22. Rf2 {[%clk 0:00:47]}  Nd5 {[%clk 0:01:47]} 23. Bd4 {[%clk 0:00:42]}  Rxf2+ {[%clk 0:01:46]} 24. Kxf2 {[%clk 0:00:42]}  Rc8 {[%clk 0:01:45]} 25. a3 {[%clk 0:00:31]}  h5 {[%clk 0:01:43]} 26. Ra7 {[%clk 0:00:24]}  Rc4 {[%clk 0:01:33]} 27. Be5 {[%clk 0:00:19]}  f6 {[%clk 0:01:28]} 28. Bd6 {[%clk 0:00:14]}  Rc2+ {[%clk 0:01:24]} 29. Kf3 {[%clk 0:00:14]}  Rxb2 {[%clk 0:01:24]} 30. Rb7 {[%clk 0:00:13]}  Rb3+ {[%clk 0:01:24]} 31. Kf2 {[%clk 0:00:13]}  Rb2+ {[%clk 0:01:22]} 32. Kf3 {[%clk 0:00:14]}  f5 {[%clk 0:01:06]} 33. Rxg7+ {[%clk 0:00:07]}  Kxg7 {[%clk 0:01:03]} 34. Be5+ {[%clk 0:00:08]}  Kf7 {[%clk 0:01:03]} 35. Bxb2 {[%clk 0:00:09]}  Nb6 {[%clk 0:01:03]} 36. g4 {[%clk 0:00:07]}  hxg4+ {[%clk 0:01:02]} 37. hxg4 {[%clk 0:00:08]}  Nc4 {[%clk 0:01:02]} 38. Bc1 {[%clk 0:00:08]}  Kg6 {[%clk 0:00:59]} 39. g5 {[%clk 0:00:08]}  Nd6 {[%clk 0:00:59]} 40. Ke3 {[%clk 0:00:08]}  Ne4 {[%clk 0:00:58]} 41. Kd4 {[%clk 0:00:09]}  Kf7 {[%clk 0:00:49]} 42. Ke5 {[%clk 0:00:09]}  Nc3 {[%clk 0:00:48]} 43. Be3 {[%clk 0:00:08]}  Nb1 {[%clk 0:00:47]} 44. Bc5 {[%clk 0:00:09]}  Nd2 {[%clk 0:00:47]} 45. Kd6 {[%clk 0:00:07]}  Ne4+ {[%clk 0:00:38]} 46. Kc6 {[%clk 0:00:08]}  Nc3 {[%clk 0:00:38]} 47. Bd4 {[%clk 0:00:04]}  Nd5 {[%clk 0:00:38]} 48. Be5 {[%clk 0:00:05]}  b4 {[%clk 0:00:38]} 49. a4 {[%clk 0:00:05]}  b3 {[%clk 0:00:35]} 50. a5 {[%clk 0:00:05]}  Nb4+ {[%clk 0:00:35]} 51. Kb5 {[%clk 0:00:06]}  Nd3 {[%clk 0:00:32]} 52. Bc3 {[%clk 0:00:06]}  Nxf4 {[%clk 0:00:30]} 53. a6 {[%clk 0:00:07]}  Nd5 {[%clk 0:00:30]} 54. Be5 {[%clk 0:00:07]}  Kg6 {[%clk 0:00:26]} 55. a7 {[%clk 0:00:08]}  b2 {[%clk 0:00:25]} 56. Bxb2 {[%clk 0:00:07]}  Nc7+ {[%clk 0:00:20]} 57. Kc6 {[%clk 0:00:08]}  Na8 {[%clk 0:00:21]} 58. Kb7 {[%clk 0:00:08]}  Kxg5 {[%clk 0:00:20]} 59. Kxa8 {[%clk 0:00:09]}  f4 {[%clk 0:00:20]} 60. Kb7 {[%clk 0:00:09]}  f3 {[%clk 0:00:21]} 61. a8=Q {[%clk 0:00:10]}  f2 {[%clk 0:00:22]} 62. Qf8 {[%clk 0:00:10]}  f1=Q {[%clk 0:00:22]} 63. Qxf1 {[%clk 0:00:10]} 1-0


[Site "https://www.chess.com"]

[Event "Titled Tuesday Blitz July 25 Early 2023"]
[White "vishwa_vijeta"]
[Black "Winkels, Marcel"]
[BlackFideId "1003887"]
[WhiteElo "2522"]
[BlackElo "2052"]
[Result "1-0"]
[Round "1"]
[TimeControl "180+2"]
[Date "2023.07.25"]
[WhiteClock "0:02:24"]
[BlackClock "0:01:55"]
[Board "238"]

1. e4 {[%clk 0:03:00]}  c5 {[%clk 0:02:59]} 2. Nf3 {[%clk 0:02:59]}  e6 {[%clk 0:02:52]} 3. d4 {[%clk 0:03:00]}  cxd4 {[%clk 0:02:51]} 4. Nxd4 {[%clk 0:03:01]}  Nc6 {[%clk 0:02:51]} 5. Nc3 {[%clk 0:03:01]}  Qc7 {[%clk 0:02:52]} 6. Be2 {[%clk 0:02:59]}  a6 {[%clk 0:02:52]} 7. Be3 {[%clk 0:02:59]}  Nf6 {[%clk 0:02:52]} 8. O-O {[%clk 0:02:59]}  Be7 {[%clk 0:02:52]} 9. f4 {[%clk 0:02:58]}  d6 {[%clk 0:02:52]} 10. Bf3 {[%clk 0:02:54]}  O-O {[%clk 0:02:51]} 11. Qd2 {[%clk 0:02:54]}  e5 {[%clk 0:02:37]} 12. Nb3 {[%clk 0:02:46]}  b5 {[%clk 0:02:32]} 13. Rad1 {[%clk 0:02:45]}  Bb7 {[%clk 0:02:31]} 14. Nd5 {[%clk 0:02:42]}  Nxd5 {[%clk 0:02:29]} 15. exd5 {[%clk 0:02:43]}  exf4 {[%clk 0:02:18]} 16. dxc6 {[%clk 0:02:38]}  fxe3 {[%clk 0:02:17]} 17. cxb7 {[%clk 0:02:32]}  exd2 {[%clk 0:02:12]} 18. bxa8=Q {[%clk 0:02:32]}  Rxa8 {[%clk 0:02:10]} 19. Bxa8 {[%clk 0:02:32]}  Qxc2 {[%clk 0:02:02]} 20. Rxd2 {[%clk 0:02:30]}  Qg6 {[%clk 0:01:57]} 21. Bd5 {[%clk 0:02:28]}  h5 {[%clk 0:01:55]} 22. Bxf7+ {[%clk 0:02:24]} 1-0


[Site "https://www.chess.com"]

[Event "Titled Tuesday Blitz July 25 Early 2023"]
[White "Goughfather"]
[Black "Makkar, Rajat"]
[BlackFideId "36016810"]
[WhiteElo "2045"]
[BlackElo "2521"]
[Result "0-1"]
[Round "1"]
[TimeControl "180+2"]
[Date "2023.07.25"]
[WhiteClock "0:00:01"]
[BlackClock "0:01:14"]
[Board "239"]

1. d4 {[%clk 0:02:52]}  d5 {[%clk 0:02:59]} 2. Nc3 {[%clk 0:02:52]}  Nf6 {[%clk 0:02:58]} 3. Bf4 {[%clk 0:02:51]}  e6 {[%clk 0:02:58]} 4. Nb5 {[%clk 0:02:51]}  Na6 {[%clk 0:02:57]} 5. e3 {[%clk 0:02:51]}  Be7 {[%clk 0:02:50]} 6. Nf3 {[%clk 0:02:11]}  O-O {[%clk 0:02:50]} 7. h4 {[%clk 0:02:11]}  c6 {[%clk 0:02:45]} 8. Nc3 {[%clk 0:02:01]}  c5 {[%clk 0:02:45]} 9. h5 {[%clk 0:01:49]}  cxd4 {[%clk 0:02:33]} 10. exd4 {[%clk 0:01:16]}  Ne4 {[%clk 0:02:34]} 11. Bxa6 {[%clk 0:00:49]}  bxa6 {[%clk 0:02:32]} 12. Nxe4 {[%clk 0:00:49]}  dxe4 {[%clk 0:02:32]} 13. Ne5 {[%clk 0:00:49]}  Bb7 {[%clk 0:02:29]} 14. Qg4 {[%clk 0:00:23]}  Qxd4 {[%clk 0:01:54]} 15. O-O {[%clk 0:00:22]}  f5 {[%clk 0:01:50]} 16. Qg3 {[%clk 0:00:15]}  Rad8 {[%clk 0:01:47]} 17. c3 {[%clk 0:00:06]}  Qd5 {[%clk 0:01:43]} 18. Rad1 {[%clk 0:00:02]}  Qxd1 {[%clk 0:01:34]} 19. Rxd1 {[%clk 0:00:03]}  Rxd1+ {[%clk 0:01:35]} 20. Kh2 {[%clk 0:00:04]}  Bf6 {[%clk 0:01:29]} 21. Nc4 {[%clk 0:00:02]}  Rd7 {[%clk 0:01:24]} 22. Nd6 {[%clk 0:00:01]}  Bc6 {[%clk 0:01:21]} 23. Nc4 {[%clk 0:00:01]}  Bd5 {[%clk 0:01:20]} 24. Ne5 {[%clk 0:00:01]}  Re7 {[%clk 0:01:14]} 0-1


[Site "https://www.chess.com"]

[Event "Titled Tuesday Blitz July 25 Early 2023"]
[White "Mortazavi, Ali"]
[Black "Maluco_do_Natal_00"]
[WhiteFideId "401323"]
[WhiteElo "2518"]
[BlackElo "2045"]
[Result "1-0"]
[Round "1"]
[TimeControl "180+2"]
[Date "2023.07.25"]
[WhiteClock "0:01:36"]
[BlackClock "0:00:01"]
[Board "240"]

1. Nf3 {[%clk 0:03:00]}  d5 {[%clk 0:02:58]} 2. g3 {[%clk 0:03:00]}  c5 {[%clk 0:02:58]} 3. Bg2 {[%clk 0:03:01]}  Nc6 {[%clk 0:02:57]} 4. O-O {[%clk 0:03:02]}  Nf6 {[%clk 0:02:57]} 5. d3 {[%clk 0:03:03]}  e5 {[%clk 0:02:57]} 6. Nbd2 {[%clk 0:03:01]}  Bd6 {[%clk 0:02:28]} 7. e4 {[%clk 0:03:01]}  d4 {[%clk 0:02:28]} 8. Nh4 {[%clk 0:03:01]}  b5 {[%clk 0:02:13]} 9. a4 {[%clk 0:03:00]}  bxa4 {[%clk 0:02:11]} 10. Nf5 {[%clk 0:03:00]}  O-O {[%clk 0:02:03]} 11. Nc4 {[%clk 0:02:56]}  Bc7 {[%clk 0:02:03]} 12. Rxa4 {[%clk 0:02:55]}  Be6 {[%clk 0:01:53]} 13. b3 {[%clk 0:02:46]}  a5 {[%clk 0:01:35]} 14. f4 {[%clk 0:02:27]}  Qd7 {[%clk 0:01:15]} 15. fxe5 {[%clk 0:02:20]}  Nxe5 {[%clk 0:01:13]} 16. Nxe5 {[%clk 0:01:56]}  Bxe5 {[%clk 0:01:10]} 17. Bf4 {[%clk 0:01:54]}  Bxf4 {[%clk 0:00:42]} 18. Rxf4 {[%clk 0:01:54]}  Bxf5 {[%clk 0:00:27]} 19. Rxf5 {[%clk 0:01:54]}  Rfc8 {[%clk 0:00:10]} 20. Rxf6 {[%clk 0:01:36]}  gxf6 {[%clk 0:00:09]} 21. Qh5 {[%clk 0:01:37]}  Re8 {[%clk 0:00:01]} 22. Bh3 {[%clk 0:01:36]} 1-0


[Site "https://www.chess.com"]

[Event "Titled Tuesday Blitz July 25 Early 2023"]
[White "Castillo Pena, Patricia Evarista"]
[Black "Mindhunter08"]
[WhiteFideId "6412106"]
[WhiteElo "2000"]
[BlackElo "2514"]
[Result "0-1"]
[Round "1"]
[TimeControl "180+2"]
[Date "2023.07.25"]
[WhiteClock "0:00:45"]
[BlackClock "0:00:37"]
[Board "245"]

1. d4 {[%clk 0:02:56]}  d5 {[%clk 0:02:59]} 2. Nf3 {[%clk 0:02:54]}  Nf6 {[%clk 0:02:58]} 3. e3 {[%clk 0:02:54]}  e6 {[%clk 0:02:55]} 4. Bd3 {[%clk 0:02:54]}  b6 {[%clk 0:02:54]} 5. b3 {[%clk 0:02:53]}  Bb7 {[%clk 0:02:54]} 6. Bb2 {[%clk 0:02:53]}  Nbd7 {[%clk 0:02:55]} 7. Nbd2 {[%clk 0:02:53]}  Be7 {[%clk 0:02:54]} 8. O-O {[%clk 0:02:53]}  O-O {[%clk 0:02:55]} 9. Ne5 {[%clk 0:02:53]}  c5 {[%clk 0:02:53]} 10. f4 {[%clk 0:02:53]}  Ne4 {[%clk 0:02:52]} 11. c4 {[%clk 0:02:47]}  Ndf6 {[%clk 0:02:49]} 12. Qc2 {[%clk 0:02:40]}  Rc8 {[%clk 0:02:39]} 13. Rac1 {[%clk 0:02:33]}  h6 {[%clk 0:02:20]} 14. Qd1 {[%clk 0:01:55]}  cxd4 {[%clk 0:02:05]} 15. exd4 {[%clk 0:01:55]}  Nxd2 {[%clk 0:01:34]} 16. Qxd2 {[%clk 0:01:55]}  Ne4 {[%clk 0:01:35]} 17. Qe2 {[%clk 0:01:53]}  f5 {[%clk 0:01:14]} 18. Rfd1 {[%clk 0:01:40]}  Bd6 {[%clk 0:01:01]} 19. Qh5 {[%clk 0:01:32]}  Qe7 {[%clk 0:00:54]} 20. Ng6 {[%clk 0:01:26]}  Qf7 {[%clk 0:00:54]} 21. Be2 {[%clk 0:01:14]}  Nf6 {[%clk 0:00:49]} 22. Ne5 {[%clk 0:01:07]}  Qxh5 {[%clk 0:00:45]} 23. Bxh5 {[%clk 0:01:06]}  Nxh5 {[%clk 0:00:46]} 24. g3 {[%clk 0:01:01]}  Nf6 {[%clk 0:00:43]} 25. Re1 {[%clk 0:00:59]}  Rfe8 {[%clk 0:00:41]} 26. cxd5 {[%clk 0:00:56]}  Bxd5 {[%clk 0:00:38]} 27. h4 {[%clk 0:00:45]}  Ne4 {[%clk 0:00:37]} 0-1


[Site "https://www.chess.com"]

[Event "Titled Tuesday Blitz July 25 Early 2023"]
[White "Osmak, Yuliia"]
[Black "Navyblue1"]
[WhiteFideId "14101602"]
[WhiteElo "2509"]
[BlackElo "1897"]
[Result "0-1"]
[Round "1"]
[TimeControl "180+2"]
[Date "2023.07.25"]
[WhiteClock "0:00:02"]
[BlackClock "0:00:05"]
[Board "248"]

1. Nf3 {[%clk 0:02:57]}  c5 {[%clk 0:02:57]} 2. g3 {[%clk 0:02:54]}  d5 {[%clk 0:02:53]} 3. Bg2 {[%clk 0:02:36]}  Nc6 {[%clk 0:02:50]} 4. O-O {[%clk 0:02:35]}  e5 {[%clk 0:02:42]} 5. d3 {[%clk 0:02:34]}  Be7 {[%clk 0:02:38]} 6. e4 {[%clk 0:02:34]}  d4 {[%clk 0:02:36]} 7. Na3 {[%clk 0:02:29]}  Nf6 {[%clk 0:02:28]} 8. Nc4 {[%clk 0:02:28]}  Qc7 {[%clk 0:02:29]} 9. a4 {[%clk 0:02:26]}  Bg4 {[%clk 0:02:00]} 10. h3 {[%clk 0:02:23]}  Bxf3 {[%clk 0:01:53]} 11. Qxf3 {[%clk 0:02:24]}  O-O {[%clk 0:01:52]} 12. g4 {[%clk 0:02:14]}  a6 {[%clk 0:01:46]} 13. a5 {[%clk 0:02:12]}  Nd7 {[%clk 0:01:37]} 14. Qg3 {[%clk 0:02:02]}  b5 {[%clk 0:01:21]} 15. axb6 {[%clk 0:02:01]}  Nxb6 {[%clk 0:01:20]} 16. Nxb6 {[%clk 0:01:54]}  Qxb6 {[%clk 0:01:21]} 17. f4 {[%clk 0:01:44]}  exf4 {[%clk 0:01:20]} 18. Qxf4 {[%clk 0:01:39]}  Bf6 {[%clk 0:00:59]} 19. b3 {[%clk 0:01:30]}  Be5 {[%clk 0:00:57]} 20. Qf2 {[%clk 0:01:28]}  Nb4 {[%clk 0:00:35]} 21. g5 {[%clk 0:01:24]}  Qd6 {[%clk 0:00:24]} 22. Ra5 {[%clk 0:01:10]}  Qb6 {[%clk 0:00:20]} 23. Ra4 {[%clk 0:01:09]}  Qd6 {[%clk 0:00:19]} 24. Qe2 {[%clk 0:01:04]}  Bh2+ {[%clk 0:00:18]} 25. Kh1 {[%clk 0:01:04]}  Be5 {[%clk 0:00:18]} 26. h4 {[%clk 0:01:02]}  Qe6 {[%clk 0:00:17]} 27. Bf4 {[%clk 0:00:46]}  Bxf4 {[%clk 0:00:16]} 28. Rxf4 {[%clk 0:00:47]}  f6 {[%clk 0:00:15]} 29. Rf5 {[%clk 0:00:29]}  fxg5 {[%clk 0:00:12]} 30. Rxc5 {[%clk 0:00:26]}  Qd6 {[%clk 0:00:09]} 31. Rxg5 {[%clk 0:00:20]}  Rac8 {[%clk 0:00:09]} 32. Qg4 {[%clk 0:00:15]}  Rxc2 {[%clk 0:00:08]} 33. Rxg7+ {[%clk 0:00:14]}  Kh8 {[%clk 0:00:08]} 34. Ra1 {[%clk 0:00:08]}  Rcf2 {[%clk 0:00:07]} 35. Qg3 {[%clk 0:00:06]}  Qxg3 {[%clk 0:00:06]} 36. Rxg3 {[%clk 0:00:07]}  Rd2 {[%clk 0:00:04]} 37. Ra4 {[%clk 0:00:06]}  Nxd3 {[%clk 0:00:04]} 38. Rxd4 {[%clk 0:00:06]}  Nf2+ {[%clk 0:00:03]} 39. Kg1 {[%clk 0:00:06]}  Rxd4 {[%clk 0:00:04]} 40. e5 {[%clk 0:00:06]}  Rd1+ {[%clk 0:00:04]} 41. Kh2 {[%clk 0:00:06]}  Re1 {[%clk 0:00:05]} 42. Rg5 {[%clk 0:00:05]}  Nd3 {[%clk 0:00:04]} 43. e6 {[%clk 0:00:05]}  Rxe6 {[%clk 0:00:03]} 44. Ra5 {[%clk 0:00:04]}  Nf4 {[%clk 0:00:03]} 45. Bf3 {[%clk 0:00:03]}  Ref6 {[%clk 0:00:03]} 46. Bg4 {[%clk 0:00:03]}  Ng6 {[%clk 0:00:03]} 47. h5 {[%clk 0:00:03]}  Rf2+ {[%clk 0:00:04]} 48. Kg3 {[%clk 0:00:03]}  Ne7 {[%clk 0:00:03]} 49. Rxa6 {[%clk 0:00:03]}  R2f6 {[%clk 0:00:04]} 50. Ra7 {[%clk 0:00:02]}  Nf5+ {[%clk 0:00:04]} 51. Kh2 {[%clk 0:00:02]}  Ng7 {[%clk 0:00:05]} 0-1


[Site "https://www.chess.com"]

[Event "Titled Tuesday Blitz July 25 Early 2023"]
[White "Kayis, Gulcan Sena"]
[Black "Khodzhamkuliev, Bahadur"]
[WhiteFideId "34553045"]
[BlackFideId "24135046"]
[WhiteElo "1893"]
[BlackElo "2507"]
[Result "1/2-1/2"]
[Round "1"]
[TimeControl "180+2"]
[Date "2023.07.25"]
[WhiteClock "0:02:33"]
[BlackClock "0:02:01"]
[Board "249"]

1. e4 {[%clk 0:02:59]}  Nc6 {[%clk 0:03:00]} 2. Nc3 {[%clk 0:02:57]}  d6 {[%clk 0:03:01]} 3. d4 {[%clk 0:02:56]}  g6 {[%clk 0:03:01]} 4. h3 {[%clk 0:02:55]}  Bg7 {[%clk 0:03:01]} 5. Nf3 {[%clk 0:02:55]}  e5 {[%clk 0:03:00]} 6. dxe5 {[%clk 0:02:54]}  dxe5 {[%clk 0:03:00]} 7. Qxd8+ {[%clk 0:02:53]}  Nxd8 {[%clk 0:03:01]} 8. Be3 {[%clk 0:02:51]}  c6 {[%clk 0:03:00]} 9. O-O-O {[%clk 0:02:50]}  Ne7 {[%clk 0:02:56]} 10. Bc4 {[%clk 0:02:47]}  b5 {[%clk 0:02:52]} 11. Bb3 {[%clk 0:02:45]}  a5 {[%clk 0:02:41]} 12. a4 {[%clk 0:02:44]}  b4 {[%clk 0:02:39]} 13. Ne2 {[%clk 0:02:44]}  Be6 {[%clk 0:02:38]} 14. Bxe6 {[%clk 0:02:40]}  Nxe6 {[%clk 0:02:39]} 15. Ng5 {[%clk 0:02:36]}  Nxg5 {[%clk 0:02:35]} 16. Bxg5 {[%clk 0:02:37]}  f6 {[%clk 0:02:34]} 17. Be3 {[%clk 0:02:36]}  Kf7 {[%clk 0:02:03]} 18. Rd7 {[%clk 0:02:34]}  Rhd8 {[%clk 0:02:02]} 19. Rhd1 {[%clk 0:02:33]}  Rxd7 {[%clk 0:02:01]} 1/2-1/2


[Site "https://www.chess.com"]

[Event "Titled Tuesday Blitz July 25 Early 2023"]
[White "only_strong_moves"]
[Black "Zepeda Berlanga, Jan Enrique"]
[BlackFideId "5132355"]
[WhiteElo "2507"]
[BlackElo "1858"]
[Result "1-0"]
[Round "1"]
[TimeControl "180+2"]
[Date "2023.07.25"]
[WhiteClock "0:01:07"]
[BlackClock "0:00:27"]
[Board "250"]

1. d4 {[%clk 0:02:59]}  Nf6 {[%clk 0:02:59]} 2. c4 {[%clk 0:02:58]}  g6 {[%clk 0:02:59]} 3. Nc3 {[%clk 0:02:57]}  Bg7 {[%clk 0:02:59]} 4. e4 {[%clk 0:02:55]}  d6 {[%clk 0:03:00]} 5. Be2 {[%clk 0:02:50]}  O-O {[%clk 0:02:54]} 6. Nf3 {[%clk 0:02:50]}  e5 {[%clk 0:02:49]} 7. Be3 {[%clk 0:02:49]}  Ng4 {[%clk 0:02:41]} 8. Bg5 {[%clk 0:02:47]}  f6 {[%clk 0:02:39]} 9. Bc1 {[%clk 0:02:48]}  f5 {[%clk 0:02:36]} 10. h3 {[%clk 0:02:45]}  fxe4 {[%clk 0:02:32]} 11. Nxe4 {[%clk 0:02:39]}  Nf6 {[%clk 0:02:31]} 12. Bg5 {[%clk 0:02:35]}  Qe8 {[%clk 0:02:27]} 13. Nxf6+ {[%clk 0:02:31]}  Bxf6 {[%clk 0:02:26]} 14. Bxf6 {[%clk 0:02:30]}  Rxf6 {[%clk 0:02:25]} 15. dxe5 {[%clk 0:02:31]}  dxe5 {[%clk 0:02:24]} 16. Qd5+ {[%clk 0:02:30]}  Kg7 {[%clk 0:02:21]} 17. Qxe5 {[%clk 0:02:22]}  Qxe5 {[%clk 0:02:12]} 18. Nxe5 {[%clk 0:02:23]}  Nd7 {[%clk 0:02:12]} 19. Ng4 {[%clk 0:02:19]}  Re6 {[%clk 0:02:07]} 20. Ne3 {[%clk 0:02:18]}  Nf6 {[%clk 0:02:00]} 21. O-O-O {[%clk 0:02:16]}  Bd7 {[%clk 0:01:56]} 22. Bf3 {[%clk 0:02:13]}  c6 {[%clk 0:01:38]} 23. Bg4 {[%clk 0:02:07]}  Re7 {[%clk 0:01:32]} 24. Bxd7 {[%clk 0:02:07]}  Nxd7 {[%clk 0:01:31]} 25. Rd6 {[%clk 0:02:05]}  Rf8 {[%clk 0:01:26]} 26. Rhd1 {[%clk 0:02:03]}  Ne5 {[%clk 0:01:18]} 27. R6d2 {[%clk 0:01:45]}  a5 {[%clk 0:01:13]} 28. c5 {[%clk 0:01:41]}  Rf4 {[%clk 0:01:01]} 29. g3 {[%clk 0:01:38]}  Rff7 {[%clk 0:00:49]} 30. b3 {[%clk 0:01:25]}  Nf3 {[%clk 0:00:38]} 31. Re2 {[%clk 0:01:20]}  Ng5 {[%clk 0:00:38]} 32. Rde1 {[%clk 0:01:14]}  Ne4 {[%clk 0:00:37]} 33. Nc4 {[%clk 0:01:03]}  Nxc5 {[%clk 0:00:18]} 34. Rxe7 {[%clk 0:01:02]}  Nd3+ {[%clk 0:00:18]} 35. Kd2 {[%clk 0:01:01]}  Nxe1 {[%clk 0:00:18]} 36. Rxf7+ {[%clk 0:01:02]}  Kxf7 {[%clk 0:00:18]} 37. Kxe1 {[%clk 0:01:02]}  Kf6 {[%clk 0:00:19]} 38. Nxa5 {[%clk 0:01:02]}  b5 {[%clk 0:00:19]} 39. Nxc6 {[%clk 0:01:02]}  Ke6 {[%clk 0:00:20]} 40. Nd4+ {[%clk 0:01:02]}  Kd5 {[%clk 0:00:20]} 41. Nxb5 {[%clk 0:01:03]}  Kc5 {[%clk 0:00:21]} 42. Nc3 {[%clk 0:01:03]}  Kb4 {[%clk 0:00:22]} 43. a4 {[%clk 0:01:03]}  Ka3 {[%clk 0:00:23]} 44. a5 {[%clk 0:01:04]}  Kxb3 {[%clk 0:00:23]} 45. a6 {[%clk 0:01:05]}  Kxc3 {[%clk 0:00:24]} 46. a7 {[%clk 0:01:06]}  Kb4 {[%clk 0:00:25]} 47. a8=Q {[%clk 0:01:06]}  Kc4 {[%clk 0:00:26]} 48. Qa7 {[%clk 0:01:06]}  Kd5 {[%clk 0:00:26]} 49. Qxh7 {[%clk 0:01:07]}  Kd4 {[%clk 0:00:27]} 1-0


[Site "https://www.chess.com"]